Cogmind - Beta 13 @@@ ROGUE MODE // 2024.05.05 @ 21:48:47 Player: Olafz Result: Destroyed by 7R-MNS with Wave Gun Performance ------------- Evolutions (4) 2000 Regions Visited (9) 1800 Robots Destroyed (41) 205 Value Destroyed (1144) 1144 Prototype IDs (2) 40 Alien Tech Used (0) 0 Bonus (-51) -51 TOTAL SCORE: 5138 Bonus ------- Friendly Fire -51 Cogmind --------- Core Integrity 0/850 Matter 262/300 Energy 100/100 System Corruption 0% Temperature Cool (9) Movement Core (700) Ox13 Location -6/Factory Parts ------- > --- POWER (1) -------- (None) > --- PROPULSION (4) --- (None) > --- UTILITY (8) ------ High-capacity Storage Unit Signal Interpreter > --- WEAPON (2) ------- (None) > --- INVENTORY (20) --- Improved Heat Sink Large Storage Unit Compact Battery (200) Structural Scanner Component Analysis Suite Rocket Launcher Peak State ------------ > --- POWER ------------ Light Angular Momentum Engine > --- PROPULSION ------- Improved Carbon-fiber Leg Improved Carbon-fiber Leg Flexi-carbon Leg Flexi-carbon Leg > --- UTILITY ---------- Advanced Heat Sink Coolant Injector High-capacity Storage Unit Structural Scanner Sensor Array Signal Interpreter Armor Integrity Analyzer Improved Medium Armor Plating > --- WEAPON ----------- Heavy Laser Gatling Laser > --- INVENTORY -------- Light Nuclear Core Light Nuclear Core Light Nuclear Core Carbon-fiber Leg Carbon-fiber Leg Improved Carbon-fiber Leg Improved Heat Sink Improved Heat Sink Disposable Heat Sink Large Storage Unit Compact Battery Structural Scanner Component Analysis Suite Field Laser Gatling Laser Gatling Laser Gauss Rifle Rocket Launcher Greatsword [Rating: 58] Favorites ----------- Power Light Angular Momentum Engine Engine Light Angular Momentum Engine Power Core Light Nuclear Core Propulsion Aluminum Leg Leg Aluminum Leg Utility Structural Scanner Device Structural Scanner Storage High-capacity Storage Unit Processor Armor Integrity Analyzer Protection Improved Medium Armor Plating Weapon Shotgun Energy Gun Gatling Laser Energy Cannon Plasma Cannon Ballistic Gun Shotgun Slashing Weapon Greatsword Build | -11 -10 -10 -9 -9 -9 -8 -8 -7 -6 ------- Run | Yrd Mat Min Mat Min Exi Min Mat Fac Fac Slots Evolved 8 | . . . 2 . . . 2 2 2 Power . | . . . . . . . . . . Propulsion 2 | . . . 2 . . . . . . Utility 6 | . . . . . . . 2 2 2 Weapon . | . . . . . . . . . . Parts Attached 70 | . 5 4 11 2 . 8 13 3 24 Power 11 | . . 1 1 . . 1 2 . 6 Engine 6 | . . 1 1 . . 1 . . 3 Core 5 | . . . . . . . 2 . 3 Reactor . | . . . . . . . . . . Propulsion 25 | . . 3 5 2 . 3 6 . 6 Treads . | . . . . . . . . . . Leg 25 | . . 3 5 2 . 3 6 . 6 Wheel . | . . . . . . . . . . Hover . | . . . . . . . . . . Flight . | . . . . . . . . . . Utility 16 | . 3 . 1 . . 2 2 3 5 Device 9 | . 1 . . . . 2 2 . 4 Storage 3 | . 2 . 1 . . . . . . Processor 2 | . . . . . . . . 1 1 Hackware . | . . . . . . . . . . Protection 2 | . . . . . . . . 2 . Artifact . | . . . . . . . . . . Weapon 18 | . 2 . 4 . . 2 3 . 7 Energy Gun 7 | . . . . . . . 2 . 5 Energy Cannon 2 | . . . . . . 1 1 . . Ballistic Gun 8 | . 2 . 4 . . 1 . . 1 Ballistic Cannon . | . . . . . . . . . . Launcher . | . . . . . . . . . . Special Weapon . | . . . . . . . . . . Impact Weapon . | . . . . . . . . . . Slashing Weapon 1 | . . . . . . . . . 1 Piercing Weapon . | . . . . . . . . . . Special Melee Weapon . | . . . . . . . . . . Unidentified Prototypes . | . . . . . . . . . . Parts Lost 39 | . . 1 4 . . 6 1 . 27 Power 7 | . . 1 . . . . 1 . 5 Propulsion 13 | . . . 2 . . 4 . . 7 Utility 8 | . . . . . . . . . 8 Weapon 11 | . . . 2 . . 2 . . 7 Highest Loss Streak 26 | . . 1 4 . . 2 1 . 26 To Critical Strikes . | . . . . . . . . . . Average Slot Usage (%) 94 | . 98 98 98 99 100 81 91 97 93 Engine 8 | . 14 13 11 11 11 11 7 . 4 Core 1 | . . . . . . . 1 7 1 Leg 31 | . 28 28 43 43 44 32 28 30 23 Device 17 | . 11 14 11 11 11 10 26 23 24 Storage 10 | . 14 14 11 11 11 11 9 7 6 Processor 3 | . . . . . . . . 6 13 Protection 1 | . . . . . . . . 6 5 Energy Gun 4 | . . . . . . . 7 15 11 Energy Cannon 1 | . . . . . . 3 7 . . Ballistic Gun 13 | . 27 28 21 22 22 13 2 . . Naked Turns . | . . . . . . . . . . Heaviest Build 68 | 12 30 32 54 54 54 60 62 62 68 Greatest Support 76 | 20 20 20 40 40 40 40 72 72 76 Greatest Overweight (x) 17 | . 1 1 2 1 1 17 6 . 16 Average Overweight (x) . | . . 1 1 1 1 2 3 . . Largest Inventory Capacity 20 | . 15 15 20 20 20 20 20 20 20 Average Capacity 18 | . 12 15 19 20 20 20 20 20 20 Most Carried 20 | . 12 15 14 18 18 20 20 20 20 Average Carried 15 | . 7 13 11 16 18 18 18 19 18 Final Capacity 20 | 8 15 15 20 20 20 20 20 20 20 Final Carried 20 | 6 12 15 11 18 18 20 20 20 6 Class Distribution -------------------- 42% | Scavenger-Mutant 40% | Mutant 11% | Scavenger-Skirmisher 4% | Skirmisher Dominant Class ---------------- Mutant | -10/Materials Mutant | -10/Mines Scavenger-Mutant | -9/Materials Scavenger-Mutant | -9/Mines Scavenger-Mutant | -9/Exiles Scavenger-Mutant | -8/Mines Scavenger-Mutant | -8/Materials Mutant | -7/Factory Scavenger-Skirmisher | -6/Factory Resources | -11 -10 -10 -9 -9 -9 -8 -8 -7 -6 ----------- Run | Yrd Mat Min Mat Min Exi Min Mat Fac Fac Matter Collected 1545 | 200 224 105 307 166 . 211 202 20 110 Remotely . | . . . . . . . . . . Salvage Created 1417 | . 181 207 250 . . 272 217 57 233 Parts 71 | . 9 14 27 . . 7 10 1 3 Haulers Intercepted 1 | . . . . . . . . . 1 Recyclers Shooed 2 | . . . 2 . . . . . . Parts Field Recycled . | . . . . . . . . . . Retrieved Matter . | . . . . . . . . . . Parts Self-Destructed . | . . . . . . . . . . Prevented . | . . . . . . . . . . Kills | -11 -10 -10 -9 -9 -9 -8 -8 -7 -6 ------- Run | Yrd Mat Min Mat Min Exi Min Mat Fac Fac Combat Hostiles Destroyed 31 | . 4 7 7 . . 6 4 1 2 Guns 27 | . 4 7 7 . . 3 3 1 2 Cannons 3 | . . . . . . 3 . . . Classes Destroyed 9 | . 2 1 3 . . . 2 . 1 Worker 6 | . . . 4 . . . 2 . . Hauler 1 | . . . . . . . . . 1 Recycler 1 | . . . 1 . . . . . . Watcher 2 | . 2 . . . . . . . . Swarmer 9 | . . 3 6 . . . . . . Grunt 18 | . 4 4 . . . 6 2 . 2 Brawler 1 | . . . . . . . 1 . . Duelist 1 | . . . . . . . 1 . . Sentry 2 | . . . 1 . . . . 1 . Best Kill Streak 5 | . 2 3 5 . . 2 5 1 1 Combat Bots Only 4 | . 2 3 3 . . 2 4 1 1 Max Kills in Single Turn 2 | . 1 1 2 . . 1 1 1 1 Gunslinging . | . . . . . . . . . . Exploded . | . . . . . . . . . . Melee . | . . . . . . . . . . Uniques/NPCs Destroyed . | . . . . . . . . . . Combat | -11 -10 -10 -9 -9 -9 -8 -8 -7 -6 -------- Run | Yrd Mat Min Mat Min Exi Min Mat Fac Fac Hostile Shots Fired 362 | . 26 34 35 . . 55 32 16 164 Missed 76 | . 6 10 9 . . 14 8 8 21 Damage Taken 5602 | . 241 228 317 20 . 717 454 255 3370 Core 1155 | . 10 31 6 . . 78 116 50 864 Absorbed by Shields . | . . . . . . . . . . Redirected to Shielding 42 | . . . . . . . . 42 . Core Remaining (%) 86 | 100 . 83 . . . 79 78 92 . Volleys Fired 157 | . 21 14 26 . . 33 11 11 41 Largest 2 | . 2 2 2 . . 2 2 2 2 Hottest 160 | . 46 46 46 . . 103 143 143 160 Shots Fired 295 | . 42 28 48 . . 59 22 22 74 Gun 279 | . 42 28 48 . . 44 21 22 74 Cannon 16 | . . . . . . 15 1 . . Launcher . | . . . . . . . . . . Special . | . . . . . . . . . . Kinetic 164 | . 42 28 48 . . 44 . . 2 Thermal 131 | . . . . . . 15 22 22 72 Explosive . | . . . . . . . . . . Electromagnetic . | . . . . . . . . . . Robot Hit Streak 13 | . 5 6 4 . . 7 8 9 13 Robot Miss Streak 9 | . 9 7 5 . . 2 1 2 6 Penetration Max . | . . . . . . . . . . Secondary Targets 5 | . 1 1 . . . . 2 1 . Max Gunslinging Chain 1 | . 1 1 . . . . 1 1 . Shots Hit Robots 224 | . 26 20 28 . . 45 19 15 71 Core Hits 118 | . 12 13 15 . . 20 18 10 30 Critical Kills . | . . . . . . . . . . Critical Parts Destroyed 1 | . . . . . . 1 . . . Critical Strikes 2 | . . . . . . 1 1 . . Burn 1 | . . . . . . . 1 . . Destroy 1 | . . . . . . 1 . . . Melee Attacks 17 | . . . . . . . . . 17 Impact . | . . . . . . . . . . Slashing 17 | . . . . . . . . . 17 Piercing . | . . . . . . . . . . Sneak Attacks . | . . . . . . . . . . Combat Hostiles . | . . . . . . . . . . Follow-up Attacks . | . . . . . . . . . . Damage Inflicted 4550 | . 371 263 407 . . 777 606 411 1715 Guns 3510 | . 371 257 396 . . 563 431 377 1115 Cannons 234 | . . . . . . 207 27 . . Explosions 148 | . . . . . . . 148 . . Melee 600 | . . . . . . . . . 600 Ramming 58 | . . 6 11 . . 7 . 34 . Kinetic 1603 | . 371 257 396 . . 563 . . 16 Thermal 2289 | . . . . . . 207 606 377 1099 Explosive . | . . . . . . . . . . Electromagnetic . | . . . . . . . . . . Impact . | . . . . . . . . . . Slashing 600 | . . . . . . . . . 600 Piercing . | . . . . . . . . . . Highest Corruption . | . . . . . . . . . . Average Corruption . | . . . . . . . . . . Corruption Purged . | . . . . . . . . . . Corruption Blocked . | . . . . . . . . . . Overload Shots . | . . . . . . . . . . Overflow Damage 65 | . . . . . . . 54 . 11 Projectiles . | . . . . . . . . . . Explosions 54 | . . . . . . . 54 . . Melee 11 | . . . . . . . . . 11 Knockbacks 2 | . . . . . . . . 2 . Impact 1 | . . . . . . . . 1 . Kinetic . | . . . . . . . . . . Secondary 1 | . . . . . . . . 1 . Self-Inflicted Damage . | . . . . . . . . . . Shots . | . . . . . . . . . . Rammed . | . . . . . . . . . . Targets Rammed 6 | . . 2 1 . . 1 . 2 . Kicked 6 | . . 2 1 . . 1 . 2 . Crushed . | . . . . . . . . . . Highest Temperature 538 | . 27 2 1 . . 538 194 90 254 Average Temperature 88 | . 9 2 1 . . 192 81 37 62 Received Heat Transfer 2286 | . 171 60 81 . . 369 216 36 1353 Effects 5 | . . . . . . 5 . . . Shutdowns 2 | . . . . . . 2 . . . Matter Decay 1 | . . . . . . 1 . . . Short Circuit 2 | . . . . . . 2 . . . Siege Activations . | . . . . . . . . . . Robots Corrupted . | . . . . . . . . . . Combat Hostiles . | . . . . . . . . . . Parts Fried . | . . . . . . . . . . Impact Corruptions . | . . . . . . . . . . Robots Melted 1 | . . . . . . . 1 . . Combat Hostiles 1 | . . . . . . . 1 . . Parts Melted 8 | . . . . . . . 5 1 2 Heat Transferred 4586 | . . . . . . 400 1194 848 2144 Parts Sabotaged . | . . . . . . . . . . Parts Stolen . | . . . . . . . . . . Parts Stripped . | . . . . . . . . . . Power Chain Reactions . | . . . . . . . . . . Alert | -11 -10 -10 -9 -9 -9 -8 -8 -7 -6 ------- Run | Yrd Mat Min Mat Min Exi Min Mat Fac Fac Peak Influence 234 | . 103 234 213 15 . 102 158 101 45 Initial 71 | . . 36 13 10 . . . 71 . Average 43 | . 45 84 108 11 . 49 21 65 9 Maximum Alert Level 1 | . . 1 1 . . . . . . Low Security (%) 97 | . 100 91 86 100 . 100 100 100 100 Level 1 2 | . . 8 13 . . . . . . Level 2 . | . . . . . . . . . . Level 3 . | . . . . . . . . . . Level 4 . | . . . . . . . . . . Level 5 . | . . . . . . . . . . High Security . | . . . . . . . . . . Max Security . | . . . . . . . . . . Squads Dispatched 12 | . 1 1 . . . . 3 4 3 Investigation 5 | . 1 1 . . . . . 2 1 Extermination 1 | . . . . . . . . . 1 Reinforcement 4 | . . . . . . . 1 2 1 Assault 1 | . . . . . . . 1 . . Garrison 1 | . . . . . . . 1 . . Intercept . | . . . . . . . . . . Searches Triggered . | . . . . . . . . . . Construction Impeded . | . . . . . . . . . . Haulers Reinforced . | . . . . . . . . . . Active Scanning Responses . | . . . . . . . . . . Cargo Convoy Interrupts . | . . . . . . . . . . Stealth | -11 -10 -10 -9 -9 -9 -8 -8 -7 -6 --------- Run | Yrd Mat Min Mat Min Exi Min Mat Fac Fac Distress Signals 3 | . . . . . . . 1 . 2 Communications Jammed . | . . . . . . . . . . Distress Signals . | . . . . . . . . . . Times Spotted 79 | . 10 8 9 2 . 7 6 10 27 Peak Tracking Total 8 | . 3 3 3 1 . 3 4 5 8 Tactical Retreats 2 | . . 1 . . . 1 . . . Traps | -11 -10 -10 -9 -9 -9 -8 -8 -7 -6 ------- Run | Yrd Mat Min Mat Min Exi Min Mat Fac Fac Traps Triggered 5 | . 1 . 1 2 . . . 1 . Indirectly . | . . . . . . . . . . Trap Hack Attempts . | . . . . . . . . . . Triggered . | . . . . . . . . . . Disarmed . | . . . . . . . . . . Reprogrammed . | . . . . . . . . . . Reused . | . . . . . . . . . . Traps Extracted . | . . . . . . . . . . Installed . | . . . . . . . . . . Triggered . | . . . . . . . . . . Machines | -11 -10 -10 -9 -9 -9 -8 -8 -7 -6 ---------- Run | Yrd Mat Min Mat Min Exi Min Mat Fac Fac Machines Disabled 3 | . . . . . . . 3 . . Max in Single Turn 3 | . . . . . . . 3 . . Garrison Access 1 | . . . . . . . 1 . . Machines Repaired . | . . . . . . . . . . Machines Dismantled . | . . . . . . . . . . Machines Sabotaged . | . . . . . . . . . . Overloaded Fab Kills . | . . . . . . . . . . Hacking | -11 -10 -10 -9 -9 -9 -8 -8 -7 -6 --------- Run | Yrd Mat Min Mat Min Exi Min Mat Fac Fac Machines Accessed 8 | . 3 1 2 1 . . 1 . . Terminals 7 | . 3 1 2 . . . 1 . . Fabricators . | . . . . . . . . . . Repair Stations . | . . . . . . . . . . Recycling Units . | . . . . . . . . . . Scanalyzers . | . . . . . . . . . . Garrison Access . | . . . . . . . . . . Total Hacks 20 | . 10 3 4 1 . . 2 . . Successful 10 | . 4 1 3 1 . . 1 . . Failed 10 | . 6 2 1 . . . 1 . . Catastrophic 4 | . 3 1 . . . . . . . Database Lockouts . | . . . . . . . . . . Manual 11 | . 6 3 . . . . 2 . . Terminals 19 | . 10 3 4 . . . 2 . . Fabricators . | . . . . . . . . . . Repair Stations . | . . . . . . . . . . Recycling Units . | . . . . . . . . . . Scanalyzers . | . . . . . . . . . . Garrison Access . | . . . . . . . . . . Terminal Hacks 7 | . 2 1 3 1 . . . . . Prototype ID Bank 1 | . 1 . . . . . . . . Open Door 1 | . . . . 1 . . . . . Level Access Points 1 | . . . 1 . . . . . . Branch Access Points 1 | . . 1 . . . . . . . Alert Level 2 | . 1 . 1 . . . . . . Registered Components 1 | . . . 1 . . . . . . Fabricator Hacks . | . . . . . . . . . . Repair Station Hacks . | . . . . . . . . . . Recycling Unit Hacks . | . . . . . . . . . . Scanalyzer . | . . . . . . . . . . Garrison Access Hacks . | . . . . . . . . . . Unauthorized Hacks 3 | . 2 . . . . . 1 . . Terminals 3 | . 2 . . . . . 1 . . Botnet 3 | . 2 . . . . . 1 . . Fabricators . | . . . . . . . . . . Repair Stations . | . . . . . . . . . . Recycling Units . | . . . . . . . . . . Scanalyzers . | . . . . . . . . . . Garrison Access . | . . . . . . . . . . Data Cores Recovered . | . . . . . . . . . . Used . | . . . . . . . . . . Hacking Detections 6 | . 3 1 1 . . . 1 . . Full Trace Events 1 | . . 1 . . . . . . . Feedback Events . | . . . . . . . . . . Feedback Blocked . | . . . . . . . . . . Robot Schematics Acquired . | . . . . . . . . . . Robots Built . | . . . . . . . . . . Authchips . | . . . . . . . . . . Time . | . . . . . . . . . . Total Robot Build Rating . | . . . . . . . . . . Part Schematics Acquired . | . . . . . . . . . . Parts Built . | . . . . . . . . . . Authchips . | . . . . . . . . . . Time . | . . . . . . . . . . Total Part Build Rating . | . . . . . . . . . . Parts Repaired . | . . . . . . . . . . Time . | . . . . . . . . . . Parts Recycled . | . . . . . . . . . . Recycled Matter . | . . . . . . . . . . Retrieved Matter . | . . . . . . . . . . Retrieved Components . | . . . . . . . . . . Parts Scanalyzed . | . . . . . . . . . . Part Schematics Acquired . | . . . . . . . . . . Parts Damaged . | . . . . . . . . . . Bothacking | -11 -10 -10 -9 -9 -9 -8 -8 -7 -6 ------------ Run | Yrd Mat Min Mat Min Exi Min Mat Fac Fac Used RIF Installer . | . . . . . . . . . . Robots Hacked . | . . . . . . . . . . Non-combat . | . . . . . . . . . . Combat . | . . . . . . . . . . Robot Hacks Applied . | . . . . . . . . . . Relay Couplers Released 2 | . . . . . . . 2 . . Machine Destruction 2 | . . . . . . . 2 . . Fabnet Peak Effective % . | . . . . . . . . . . Robots Rewired . | . . . . . . . . . . Allies Hacked . | . . . . . . . . . . Hacks Repelled . | . . . . . . . . . . Allies | -11 -10 -10 -9 -9 -9 -8 -8 -7 -6 -------- Run | Yrd Mat Min Mat Min Exi Min Mat Fac Fac Total Allies . | . . . . . . . . . . Largest Group . | . . . . . . . . . . Highest-Rated Group . | . . . . . . . . . . Highest-Rated Ally . | . . . . . . . . . . Total Orders . | . . . . . . . . . . Ally Attacks . | . . . . . . . . . . Total Damage . | . . . . . . . . . . Kills . | . . . . . . . . . . Allies Corrupted . | . . . . . . . . . . Allies Melted . | . . . . . . . . . . Intel | -11 -10 -10 -9 -9 -9 -8 -8 -7 -6 ------- Run | Yrd Mat Min Mat Min Exi Min Mat Fac Fac Robot Analysis Total . | . . . . . . . . . . Derelict Logs Recovered 3 | . . 1 . 2 . . . . . Drone Launches . | . . . . . . . . . . Drone Recoveries . | . . . . . . . . . . Exploration | -11 -10 -10 -9 -9 -9 -8 -8 -7 -6 ------------- Run | Yrd Mat Min Mat Min Exi Min Mat Fac Fac Turns Passed 4818 | . 673 433 482 535 152 478 676 498 891 Spaces Moved 2245 | 1 387 198 206 277 81 118 183 310 484 Core 8 | . . . . . . 3 . . 5 Treads . | . . . . . . . . . . Legs 2237 | 1 387 198 206 277 81 115 183 310 479 Wheels . | . . . . . . . . . . Hover . | . . . . . . . . . . Flight . | . . . . . . . . . . Fastest Speed 120 | 120 120 190 190 190 190 190 120 120 120 Average Speed 177 | 120 152 190 190 190 190 307 332 120 126 Slowest Speed 900 | 120 190 190 260 190 190 900 540 120 850 Overloaded Moves . | . . . . . . . . . . Propulsion Burnouts . | . . . . . . . . . . Robots Hopped . | . . . . . . . . . . Cave-ins Triggered . | . . . . . . . . . . Exploration Rate (%) 31 | 2 64 53 23 63 18 36 28 11 17 Regions Visited 9 Branch Regions 4 Pre-discovered Areas . | . . . . . . . . . . Known Exits Taken 3 | . . . 1 . . 1 1 . . Unknown Exits Taken 6 | 1 1 1 . 1 1 . . 1 . Scrap Searched 2 | . . . . 2 . . . . . Spaces Dug . | . . . . . . . . . . Terrain Destroyed 15 | . . . . . . 7 8 . . Melee . | . . . . . . . . . . Projectile 7 | . . . . . . 7 . . . AOE 8 | . . . . . . . 8 . . Terrain Rammed . | . . . . . . . . . . Walls Destroyed . | . . . . . . . . . . Machines Disabled . | . . . . . . . . . . Actions | -11 -10 -10 -9 -9 -9 -8 -8 -7 -6 --------- Run | Yrd Mat Min Mat Min Exi Min Mat Fac Fac Total 2743 | . 432 225 246 285 80 177 234 413 651 Wait 179 | . . 4 . 1 . 12 2 81 79 Move 2236 | . 386 197 205 276 80 117 182 309 484 Hop . | . . . . . . . . . . Pick Up 37 | . 10 2 1 6 . 3 10 4 1 Fast Attach 19 | . 4 1 3 2 . 2 5 1 1 Attach 32 | . . . 6 . . 4 4 2 16 Detach 7 | . 2 . 1 . . 2 2 . . Swap 19 | . 1 3 2 . . 2 4 . 7 Drop 34 | . 8 2 1 . . 1 14 3 5 Fire 157 | . 21 14 26 . . 33 11 11 41 Melee 17 | . . . . . . . . . 17 Ram . | . . . . . . . . . . Kick 6 | . . 2 1 . . 1 . 2 . Crush . | . . . . . . . . . . Escape Stasis . | . . . . . . . . . . Rewire . | . . . . . . . . . . Trap . | . . . . . . . . . . Miscellaneous . | . . . . . . . . . . Route ------- -11/Scrapyard -10/Materials (discovered 3 exits: *Mat / *Min x2) -10/Mines -9/Materials (discovered 5 exits: Mat x3 / *Min / Sto) -9/Mines -9/Exiles -8/Mines -8/Materials (discovered 2 exits: *Fac x2) -7/Factory -6/Factory (discovered 1 exit: [*Low]) History --------- Turn | Location | Event 1 | -11/Scrapyard | Discovered new exit (range 0) 1 | -11/Scrapyard | Entered Materials 93 | -10/Materials | Discovered new exit (range 11) 190 | -10/Materials | Discovered new exit (range 15) 302 | -10/Materials | Build established: Mutant 644 | -10/Materials | Discovered new exit (range 16) 674 | -10/Materials | Entered Mines 1019 | -10/Mines | Learned 4 Materials zone layouts 1024 | -10/Mines | Received a Rocket Launcher from a helpful Derelict 1080 | -10/Mines | Discovered new exit (range 9) 1107 | -10/Mines | Entered Materials 1107 | -9/Materials | Evolved 2 slots: Propulsion x2 1108 | -9/Materials | Identified exit to Storage 1108 | -9/Materials | Identified exit to Mines 1148 | -9/Materials | Identified exit to Materials 1308 | -9/Materials | Lost 4 parts (2n2w) 1576 | -9/Materials | Build established: Scavenger-Mutant 1589 | -9/Materials | Entered Mines 1608 | -9/Mines | Met a Derelict who couldn't figure out how to use a Trap Extractor 1810 | -9/Mines | Found a hidden stash of uninstalled traps 1941 | -9/Mines | Learned location of 1 exit from Materials 1989 | -9/Mines | Joined a pair of Derelicts in attacking an 0b10 outpost 2114 | -9/Mines | Deemed a non-threat by the Exiles lab entrance 2114 | -9/Mines | Discovered new exit (range 6) 2124 | -9/Mines | Entered Exiles 2149 | -9/Exiles | Discovered new exit (range 15) 2172 | -9/Exiles | Met 8R-AWN 2202 | -9/Exiles | Met EX-HEX 2276 | -9/Exiles | Entered Mines 2735 | -8/Mines | Discovered exit to Materials (range 5) 2754 | -8/Mines | Entered Materials 2754 | -8/Materials | Evolved 2 slots: Utility x2 2755 | -8/Materials | Identified exit to Factory 2925 | -8/Materials | Garrison activated, responded to threat 3287 | -8/Materials | Met 7R-MNS 3421 | -8/Materials | Discovered exit to Factory (range 8) 3430 | -8/Materials | Entered Factory 3430 | -7/Factory | Evolved 2 slots: Utility x2 3431 | -7/Factory | Caught up to 7R-MNS 3606 | -7/Factory | Build established: Mutant 3914 | -7/Factory | Discovered new exit (range 4) 3928 | -7/Factory | Entered another Factory area 3928 | -6/Factory | Evolved 2 slots: Utility x2 3929 | -6/Factory | Caught up to 7R-MNS 4122 | -6/Factory | Spotted B-75 Beast 4177 | -6/Factory | Discovered new exit (range 2) 4406 | -6/Factory | Build established: Scavenger-Skirmisher 4678 | -6/Factory | Attacked by 7R-MNS 4768 | -6/Factory | Core integrity fell below 50% 4805 | -6/Factory | Core integrity fell below 20% 4819 | -6/Factory | Destroyed by 7R-MNS with Wave Gun Last Messages --------------- Lgt. Nuclear Core destroyed. Critical hit (Burn: +37). Imp. Carbon-fiber Leg destroyed. Critical hit (Burn: +37). Slug penetrates 7R-MNS. Gauss Rifle destroyed. Sensor Array destroyed. ALERT: Hostiles spotted, dispatching reinforcements to Terminal F020. Lgt. Nuclear Core destroyed. W-25 Informer sends out distress signal. Disposable Heat Sink destroyed. Gatling Laser destroyed. Imp. Heat Sink destroyed. Critical hit (Burn: +37). 7R-MNS suffers critical hit (Burn). Acquired Gatling Laser. 7R-MNS suffers critical hit (Burn). Gatling Laser destroyed. K-01 Serf destroyed. Armor Integrity Analyzer destroyed. Map ----- +----------------------------------------------------+ | ?????????????????????????????????????????????????? | | ?????????????????????????????????????????????????? | | ?????????????????????????????????????????????????? | | ?????????????????????????????????????????????????? | | ?????????????????????????????????????????????????? | | ?????????????????????????????????????????????????? | | ?????????????????????????????????????????????????? | | ?????????????????????????????????????????????????? | | ?????????????????????????????????????????????????? | | ?????????????????????????????????????????????????? | | ?????????????????????????????????????????????????? | | ????????????????????????????????? ##?????????????? | | ??????????????? ???????????????? ##?????????????? | | ???????????????/?????????###???? ##?????????????? | | ??????????????? # ??????? ##### #####??????????? | | ????????????? # # ""?? ##### #####??????????? | | ????????????? # # "T # ??????????? | | ????????????? # # "" """" # ??????????? | | ????????????? # # """" # ?????????? | | ????????????? # # """" # ?????????? | | ????????????? # # ? """" # g ?????????? | | # # # # ????????? | | ##+######+##### #######+### g ##??????? | | w ##??????? | | ^ ##??????? | | @ ##??????? | | ^ % ##??????? | | t g ??????? | | #########+######+################## ????????? | | # # ########### ? ????????? | | ???? # """ # ????????????????????????????? | | ???? # ""T"" # ##???????????????????????? | | ???? # "" "" # * ##???????????????????????? | | ?? # ]# ##???????????????????????? | | ? # """ # ##???????????????????????? | | ? # """ # ##???????????????????????? | | ?? # """ # ##???????????????????????? | | ??? ????????? ############???????????????????????? | | ?????????????#############???????????????????????? | | ?????????????????????????????????????????????????? | | ?????????????????????????????????????????????????? | | ?????????????????????????????????????????????????? | | ?????????????????????????????????????????????????? | | ?????????????????????????????????????????????????? | | ?????????????????????????????????????????????????? | | ?????????????????????????????????????????????????? | | ?????????????????????????????????????????????????? | | ?????????????????????????????????????????????????? | | ?????????????????????????????????????????????????? | | ?????????????????????????????????????????????????? | +----------------------------------------------------+ Best States ------------- Heat Dissipation 56 Coolant Potential 65 Energy Generation 18 Energy Capacity 265 Matter Stores 300 Matter Capacity 450 Sight Range 16 Robot Scan Range 14 Terrain Scan Density 10 Armor Coverage 225 Utility Shielding 66 Evasion (%) 55 Armor Integrity Analysis 30 Item Schematics ----------------- None Robot Schematics ------------------ None Fabricated ------------ Nothing Alien Tech Used ----------------- None Achievements -------------- None Challenges ------------ None Game ------ Seed ThrowingNovaSpear Manual? 0 Play Time 00:34:58 Cumulative 113.7 hours Start 2024.05.05 @ 21:11:49 End 2024.05.05 @ 21:48:47 Sessions 1 Manual Loads 0 Difficulty Rogue Special Mode None Game No. 205 Rogue 203 Adventurer 2 Explorer 0 Win Type - Total 3 Types 2/0/0/1/0/0/0/0/0 Lore% 57 Gallery% 58 Achievement% 45 Wizard Run 0 Options --------- Layout 0 ASCII 0 Keyboard 1 Movement Numpad Keybinds 1 Fullscreen 2 Font 18/SmallcapsGlow Map View 76x50 Zoom Use 0% Tactical HUD 1 Map Filters NONE Filters NONE Steam 1 RUN: 8d8cfac9-4a65-49be-bdd8-e55054937c0d